bitfinex/quotes_BTCUSD_20220306
["timestamp","ask_amount","ask_price","bid_price","bid_amount"]
[1646574716886,0.36763222,38929.0,38921.0,0.128541]
[1646574717286,0.36763222,38930.0,38921.0,0.128541]
[1646574717886,0.36763222,38930.0,38920.0,0.128546]
[1646574718489,0.36763222,38929.0,38920.0,0.128546]
[1646574718689,0.37154277,38931.0,38920.0,0.19282034]
[1646574718690,0.36763222,38930.0,38920.0,0.19282034]
[1646574719491,0.36763222,38930.0,38920.0,0.128546]
[1646574719691,0.36763222,38929.0,38920.0,0.128546]
[1646574720491,0.31581294,38927.0,38920.0,0.128546]
[1646574722851,0.31581294,38926.0,38920.0,0.128546]
[1646574724250,0.31581294,38926.0,38919.0,0.09042498]
[1646574724482,0.31581294,38926.0,38921.0,0.064276]
[1646574725682,0.31581294,38927.0,38921.0,0.064276]
[1646574726582,0.31081294,38926.0,38921.0,0.064276]
[1646574727182,0.36763222,38929.0,38921.0,0.064276]
[1646574727384,0.36763222,38928.0,38921.0,0.064276]
[1646574727984,0.54501147,38928.0,38921.0,0.064276]
[1646574728256,0.36763222,38928.0,38921.0,0.064276]
[1646574728558,0.36763222,38929.0,38923.0,0.154464]
[1646574728757,0.36763222,38930.0,38923.0,0.154464]
[1646574729755,0.36763222,38929.0,38923.0,0.02593]
[1646574730356,0.36763222,38929.0,38921.0,0.064276]
[1646574730357,0.17076185,38928.0,38921.0,0.064276]
[1646574730558,0.17076185,38928.0,38920.0,0.064278]
[1646574730859,0.20611677,38926.0,38917.0,0.132553]
[1646574731059,0.20611677,38926.0,38919.0,0.00022376]
[1646574732092,0.20611677,38926.0,38917.0,0.128553]
[1646574732289,0.20611677,38926.0,38919.0,0.00022377]
[1646574732490,0.20111677,38926.0,38920.0,0.064278]
[1646574732991,0.20111677,38926.0,38916.0,0.91162429]
[1646574733692,0.20111677,38926.0,38916.0,0.93255429]
[1646574733896,0.20111677,38926.0,38916.0,0.99683829]
[1646574734798,0.31594554,38924.0,38916.0,0.99683829]
[1646574735195,0.31594554,38924.0,38916.0,0.72833829]
[1646574735396,0.31594554,38923.0,38916.0,0.72833829]
[1646574735634,0.31594554,38924.0,38918.0,0.09591225]
[1646574735834,0.31594554,38925.0,38919.0,0.064279]
[1646574736636,0.31594554,38924.0,38919.0,0.064279]
[1646574737440,0.31594554,38924.0,38918.0,0.02593]
[1646574737637,0.31594554,38924.0,38917.0,0.12880543]
[1646574737837,0.31594554,38924.0,38918.0,0.06427836]
[1646574738338,0.31594554,38923.0,38918.0,0.06427836]
[1646574739387,0.31594554,38923.0,38917.0,0.12880542]
[1646574739589,0.31594554,38923.0,38918.0,0.06427848]
[1646574739993,0.31594554,38923.0,38919.0,0.064275]
[1646574748086,0.31594554,38923.0,38919.0,0.12855217]
[1646574751040,0.31594554,38923.0,38919.0,0.064275]
[1646574752040,0.31594554,38923.0,38919.0,0.12855264]
[1646574752243,0.31594554,38923.0,38919.0,0.064275]
[1646574759635,0.31594554,38922.0,38919.0,0.064275]
[1646574759838,0.30594554,38922.0,38919.0,0.064275]
[1646574760035,0.30594554,38922.0,38917.0,0.12879013]
[1646574760836,0.30594554,38922.0,38917.0,0.128552]
[1646574761036,0.30594554,38922.0,38917.0,0.12879013]
[1646574762086,0.30594554,38922.0,38917.0,0.128552]
[1646574762286,0.30594554,38922.0,38917.0,0.12879013]
[1646574763291,0.30594554,38922.0,38917.0,0.128552]
[1646574763488,0.30594554,38922.0,38917.0,0.12879013]
[1646574764488,0.30594554,38922.0,38917.0,0.128552]
[1646574764790,0.30594554,38922.0,38917.0,0.12877435]
[1646574764989,0.30550204,38922.0,38917.0,0.12877435]
[1646574765940,0.30550204,38922.0,38917.0,0.00022235]
[1646574766138,0.36763222,38923.0,38917.0,0.00022235]
[1646574766335,0.36763222,38922.0,38917.0,0.00022235]
[1646574766737,0.36763222,38922.0,38916.0,0.63812429]
[1646574766936,0.36763222,38922.0,38917.0,0.00022235]
[1646574767937,0.36763222,38922.0,38916.0,0.63812429]
[1646574768137,0.19361655,38920.0,38917.0,0.00022235]
[1646574768741,0.30190798,38919.0,38917.0,0.00022235]
[1646574768939,0.36763222,38919.0,38917.0,0.00016235]
[1646574769139,0.36763222,38919.0,38916.0,0.63812429]
[1646574769389,0.56124877,38920.0,38916.0,0.63812429]
[1646574769590,0.76191832,38920.0,38916.0,0.63812429]
[1646574771290,0.3942861,38920.0,38916.0,0.63812429]
[1646574771589,0.76191832,38920.0,38916.0,0.63812429]
[1646574771989,0.3942861,38920.0,38916.0,0.63812429]
[1646574772388,0.76191832,38920.0,38916.0,0.63812429]
[1646574772591,0.3942861,38920.0,38916.0,0.63812429]
[1646574772791,0.76191832,38920.0,38916.0,0.63812429]
[1646574772990,0.76191832,38920.0,38916.0,0.63837771]
[1646574773240,0.31603795,38918.0,38916.0,0.63837771]
[1646574774043,0.31603795,38919.0,38916.0,0.63812429]
[1646574775342,0.31603795,38919.0,38916.0,0.63837771]
[1646574776348,0.33446868,38920.0,38916.0,0.63837771]
[1646574776349,0.31117428,38920.0,38916.0,0.70240829]
[1646574776546,0.36763222,38923.0,38917.0,0.30190798]
[1646574776747,0.36763222,38923.0,38917.0,0.43046098]
[1646574776994,0.1174,38927.0,38917.0,0.43046098]
[1646574776995,0.36763222,38924.0,38917.0,0.43046098]
[1646574777296,0.36763222,38928.0,38921.0,0.064265]
[1646574777492,0.36763222,38928.0,38920.0,0.7867]
[1646574777493,0.36763222,38930.0,38924.0,0.56197674]
[1646574777694,0.36763222,38929.0,38925.0,0.30190798]
[1646574777892,0.36763222,38929.0,38924.0,0.56197674]
[1646574778492,0.36763222,38929.0,38924.0,0.62624474]
[1646574778893,0.19203029,38933.0,38924.0,0.62624474]
[1646574778894,0.36763222,38930.0,38924.0,0.62624474]
[1646574779092,0.36763222,38929.0,38924.0,0.62624474]
[1646574779293,0.36763222,38930.0,38925.0,0.30190798]
[1646574779792,0.36763222,38930.0,38924.0,0.62624474]
[1646574779793,0.15452382,38928.0,38924.0,0.62624474]
[1646574779994,0.15452382,38928.0,38924.0,0.56197674]
[1646574780840,0.20876906,38927.0,38924.0,0.56197674]
[1646574781438,0.52215604,38928.0,38924.0,0.56197674]
[1646574782438,0.19659951,38927.0,38924.0,0.56197674]
[1646574782739,0.52215604,38928.0,38924.0,0.56197674]
[1646574783741,0.36763222,38928.0,38924.0,0.62624874]
[1646574783938,0.36763222,38928.0,38924.0,0.56197674]
[1646574784388,0.3159266,38926.0,38924.0,0.56197674]
[1646574788944,0.3159266,38927.0,38924.0,0.56197674]
[1646574789739,0.3159266,38926.0,38924.0,0.56197674]
[1646574790340,0.3159266,38927.0,38924.0,0.56197674]
[1646574792394,0.3159266,38926.0,38924.0,0.56197674]
[1646574795398,0.3159266,38926.0,38925.0,0.00257059]
[1646574795644,0.3159266,38927.0,38925.0,0.00257059]
[1646574795849,0.3159266,38927.0,38926.0,0.00257059]
[1646574799792,0.36763222,38928.0,38926.0,0.00257059]
[1646574799991,0.36763222,38928.0,38927.0,0.00257059]
[1646574800392,0.36763222,38929.0,38927.0,0.00257059]
[1646574800593,0.36763222,38929.0,38928.0,0.00257059]
[1646574800993,0.57344475,38929.0,38928.0,0.00257059]
[1646574801491,0.36763222,38929.0,38928.0,0.00257059]
[1646574801894,0.06942918,38930.0,38928.0,0.00257059]
[1646574802091,0.36855434,38929.0,38925.0,0.003]
[1646574802391,0.36855434,38929.0,38928.0,0.00257059]
[1646574802392,0.55460532,38929.0,38928.0,0.00257059]
[1646574803238,0.36855434,38929.0,38928.0,0.00257059]
[1646574803842,0.36855434,38930.0,38928.0,0.00257059]
[1646574804040,0.36855434,38930.0,38925.0,0.06727]
[1646574804640,0.36855434,38931.0,38925.0,0.06427]
[1646574805039,0.36855434,38930.0,38925.0,0.06427]
[1646574805440,0.36855434,38930.0,38926.0,0.06426479]
[1646574805641,0.36855434,38930.0,38925.0,0.06427]
[1646574807093,0.31587794,38928.0,38925.0,0.06427]
[1646574807294,0.31587794,38928.0,38927.0,0.00257059]
[1646574807591,0.36855434,38930.0,38927.0,0.00257059]
[1646574807890,0.36855434,38929.0,38924.0,0.56797674]
[1646574808089,0.57749387,38929.0,38928.0,0.00257059]
[1646574809894,0.36855434,38929.0,38928.0,0.00257059]
[1646574810194,0.36855434,38930.0,38928.0,0.00257059]
[1646574810492,0.36855434,38930.0,38924.0,0.56197674]
[1646574810742,0.31587578,38928.0,38924.0,0.56197674]
[1646574810943,0.31587578,38927.0,38924.0,0.56197674]
[1646574811142,0.31587578,38927.0,38926.0,0.00257063]
[1646574811342,0.31587578,38928.0,38926.0,0.00257063]
[1646574811543,0.31587578,38928.0,38927.0,0.00257059]
[1646574811744,0.31587938,38928.0,38927.0,0.00257059]
[1646574811942,0.31587938,38928.0,38927.0,0.00245162]
[1646574812246,0.17717853,38929.0,38927.0,0.00245162]
[1646574812443,0.36855434,38930.0,38928.0,0.00257059]
[1646574812643,0.36855434,38930.0,38925.0,0.064269]
[1646574812843,0.36855434,38930.0,38924.0,0.69050774]
[1646574813043,0.1801368,38932.0,38924.0,0.69050774]
[1646574813044,0.36855434,38929.0,38924.0,0.69050774]
[1646574813244,0.36855434,38929.0,38928.0,0.00257059]
[1646574813648,0.36855434,38930.0,38928.0,0.00257059]
[1646574813844,0.36855434,38930.0,38924.0,0.69050774]
[1646574814502,0.36855434,38929.0,38924.0,0.69050774]
[1646574814701,0.36855434,38929.0,38928.0,0.00257059]
[1646574815006,0.36855434,38930.0,38928.0,0.00257059]
[1646574815203,0.36855434,38930.0,38924.0,0.69050774]
[1646574815400,0.36855434,38930.0,38924.0,0.7547759]
[1646574816502,0.1801368,38932.0,38924.0,0.7547759]
[1646574816503,0.36855434,38929.0,38924.0,0.7547759]
[1646574816704,0.36855434,38929.0,38928.0,0.00257059]
[1646574816903,0.54238006,38929.0,38928.0,0.00257059]
[1646574817102,0.23285342,38929.0,38928.0,0.00257059]
[1646574818945,0.5338162,38929.0,38924.0,0.56197674]
[1646574819144,0.36866944,38925.0,38924.0,0.56197674]
[1646574819344,0.0590277,38925.0,38924.0,0.56197674]
[1646574819742,0.16654653,38925.0,38924.0,0.56197674]
[1646574819945,0.52653701,38925.0,38924.0,0.56197674]
[1646574820345,0.22557423,38925.0,38924.0,0.56197674]
[1646574820944,0.28986723,38925.0,38924.0,0.56197674]
[1646574821917,0.22557423,38925.0,38924.0,0.56197674]
[1646574823521,0.52653701,38925.0,38924.0,0.56197674]
[1646574825519,0.22557423,38925.0,38924.0,0.56197674]
[1646574825952,0.67653701,38925.0,38924.0,0.56197674]
[1646574826551,0.52653701,38925.0,38924.0,0.56197674]
[1646574826757,0.59082901,38925.0,38924.0,0.56197674]
[1646574826953,0.74082901,38925.0,38924.0,0.56197674]
[1646574827753,0.59082901,38925.0,38924.0,0.56197674]
[1646574827956,0.74082901,38925.0,38924.0,0.55907674]
[1646574828153,0.59082901,38925.0,38924.0,0.55907674]
[1646574829155,0.74082901,38925.0,38924.0,0.55907674]
[1646574830206,1.12595501,38925.0,38924.0,0.55907674]
[1646574830610,0.064306,38922.0,38916.0,0.51840419]
[1646574830809,0.41262279,38917.0,38916.0,0.51863348]
[1646574831307,0.78123392,38917.0,38916.0,0.51863348]
[1646574831610,0.41262279,38917.0,38916.0,0.51863348]
[1646574831806,0.41262279,38917.0,38916.0,0.51840419]
[1646574832605,0.47692879,38917.0,38916.0,0.51840419]
[1646574833256,0.41262279,38917.0,38916.0,0.51840419]
[1646574833652,0.47692779,38917.0,38916.0,0.51840419]
[1646574834554,0.41262279,38917.0,38916.0,0.51840419]
[1646574834754,0.72847672,38917.0,38916.0,0.51840419]
[1646574834953,0.41262279,38917.0,38916.0,0.51840419]
[1646574835354,0.72847175,38917.0,38916.0,0.51840419]
[1646574835756,0.52974839,38917.0,38916.0,0.51840419]
[1646574836156,0.31584896,38918.0,38916.0,0.51840419]
[1646574836355,0.31584896,38919.0,38916.0,0.51840419]
[1646574836553,0.31584896,38920.0,38916.0,0.51840419]
[1646574836756,0.52287993,38920.0,38916.0,0.51840419]
[1646574837001,0.31584896,38920.0,38916.0,0.51840419]
[1646574837704,0.18104731,38924.0,38916.0,0.51840419]
[1646574837705,0.31584896,38921.0,38916.0,0.51840419]
[1646574837901,0.31584896,38921.0,38916.0,0.51862721]
[1646574838902,0.31584896,38921.0,38916.0,0.51840419]
[1646574839101,0.31584896,38921.0,38916.0,0.51862721]
[1646574839902,0.52367283,38922.0,38916.0,0.51862721]
[1646574840103,0.52367283,38922.0,38916.0,0.51840419]
[1646574840303,0.52367283,38922.0,38916.0,0.51862714]
[1646574840503,0.31584896,38921.0,38916.0,0.51862714]
[1646574841355,0.31584896,38921.0,38916.0,0.51840419]
[1646574841556,0.31584896,38922.0,38916.0,0.51862714]
[1646574841958,0.31584896,38921.0,38916.0,0.51862714]
[1646574842156,0.15511731,38924.0,38916.0,0.51862714]
[1646574842157,0.31584896,38922.0,38916.0,0.51862714]
[1646574842354,0.31584896,38920.0,38916.0,0.51862714]
[1646574842554,0.31584896,38920.0,38916.0,0.51840419]
[1646574842754,0.31584896,38920.0,38916.0,0.51862714]
[1646574842954,0.31584896,38921.0,38916.0,0.51862714]
[1646574843755,0.31584896,38921.0,38916.0,0.51840419]
[1646574843960,0.31584896,38922.0,38917.0,0.05427725]
[1646574844157,0.31584896,38925.0,38917.0,0.08020725]
[1646574844413,0.31584896,38928.0,38917.0,0.08020725]
[1646574844613,0.31584896,38929.0,38922.0,0.06599853]
[1646574845413,0.31584896,38929.0,38923.0,0.12853612]
[1646574845813,0.31584896,38929.0,38923.0,0.064268]
[1646574846013,0.31584896,38928.0,38923.0,0.064268]
[1646574846413,0.31584896,38927.0,38918.0,0.01284]
[1646574846613,0.31584896,38927.0,38917.0,0.20567383]
[1646574847112,0.31584896,38927.0,38918.0,0.07024336]
[1646574847913,0.31584896,38927.0,38917.0,0.3729428]
[1646574848147,0.31584896,38927.0,38917.0,0.30866497]
[1646574848352,0.31584896,38926.0,38920.0,0.064277]
[1646574849550,0.31584896,38926.0,38919.0,0.004]
[1646574850151,0.31584896,38926.0,38920.0,0.064279]
[1646574851357,0.31584896,38926.0,38919.0,0.005]
[1646574851358,0.21283436,38925.0,38919.0,0.005]
[1646574852399,0.38615547,38925.0,38919.0,0.005]
[1646574852598,0.21283436,38925.0,38917.0,0.128556]
[1646574852799,0.001,38920.0,38917.0,0.128556]
[1646574853299,0.21283436,38925.0,38920.0,0.002]
[1646574853903,0.16577584,38924.0,38920.0,0.002]
[1646574854102,0.21283436,38925.0,38920.0,0.002]
[1646574855301,0.52868332,38925.0,38920.0,0.002]
[1646574855950,0.31584896,38926.0,38920.0,0.06628]
[1646574856149,0.31584896,38926.0,38920.0,0.002]
[1646574856349,0.31584896,38925.0,38920.0,0.002]
[1646574856556,0.31584896,38926.0,38920.0,0.002]
[1646574857151,0.47086372,38926.0,38920.0,0.002]
[1646574857350,0.47086372,38926.0,38920.0,0.06628]
[1646574857551,0.31584896,38926.0,38920.0,0.06628]
[1646574858155,0.31584896,38926.0,38920.0,0.002]
[1646574858356,0.31584896,38925.0,38920.0,0.002]
[1646574858555,0.31584896,38925.0,38917.0,0.125556]
[1646574859158,0.48570619,38925.0,38917.0,0.125556]
[1646574859397,0.31584896,38925.0,38917.0,0.125556]
[1646574860799,0.31584896,38924.0,38917.0,0.125556]
[1646574860998,0.46638129,38924.0,38917.0,0.125556]
[1646574861805,0.31584896,38924.0,38917.0,0.125556]
[1646574867204,0.36861113,38927.0,38919.0,0.06427377]
[1646574867205,0.31584896,38925.0,38919.0,0.06427377]
[1646574867404,0.31584896,38927.0,38919.0,0.06427377]
[1646574867601,0.001,38920.0,38919.0,0.06427377]
[1646574868602,0.001,38920.0,38919.0,0.12853877]
[1646574869203,0.00074086,38920.0,38919.0,0.12853877]
[1646574869404,0.00074086,38920.0,38919.0,0.09020377]
[1646574869605,0.00074086,38920.0,38919.0,0.06427377]
[1646574871468,0.00074086,38920.0,38919.0,0.2186825]
[1646574872071,0.00074086,38920.0,38919.0,0.29375355]
[1646574872274,0.00074086,38920.0,38919.0,0.42223228]
[1646574872470,0.00074086,38920.0,38919.0,0.29375355]
[1646574872872,0.00074086,38920.0,38919.0,0.42223228]
[1646574873476,0.00022322,38932.0,38921.0,0.7867]
[1646574873672,0.00022322,38932.0,38924.0,0.8251292]
[1646574873874,0.31584896,38936.0,38927.0,0.02593]
[1646574874074,0.31584896,38937.0,38931.0,0.02593]
[1646574874275,0.00022399,38932.0,38931.0,0.02593]
[1646574874501,0.00022399,38932.0,38931.0,0.08026712]
[1646574874704,0.00022399,38932.0,38931.0,0.23026712]
[1646574874909,0.31684896,38940.0,38935.0,0.02593]
[1646574875104,0.001,38940.0,38935.0,0.02593]
[1646574875302,0.001,38940.0,38935.0,0.32957308]
[1646574875710,0.31567278,38945.0,38941.0,0.82679441]
[1646574875905,0.11013016,38950.0,38944.0,0.96263]
[1646574876107,0.0011,38954.0,38944.0,0.19353161]
[1646574876108,0.11013016,38953.0,38944.0,0.19353161]
[1646574876307,0.0011,38954.0,38944.0,0.19353161]
[1646574876308,0.17982252,38952.0,38946.0,0.02593]
[1646574876505,0.00012718,38949.0,38946.0,0.02593]
[1646574876906,0.00012718,38949.0,38945.0,0.1]
[1646574876907,0.00012718,38949.0,38947.0,0.064225]
[1646574877305,0.00012718,38949.0,38941.0,0.24264341]
[1646574877512,0.15559935,38954.0,38941.0,0.228479]
[1646574877513,0.30364308,38953.0,38941.0,0.228479]
[1646574877707,0.30364308,38953.0,38942.0,0.02593]
[1646574877708,0.20118439,38946.0,38942.0,0.02593]
[1646574878160,0.00012718,38950.0,38942.0,0.02593]
[1646574878559,0.0011,38954.0,38944.0,0.064239]
[1646574878963,0.00025337,38948.0,38944.0,0.064239]
[1646574879160,0.19183995,38947.0,38944.0,0.064239]
[1646574879561,0.19183995,38947.0,38945.0,0.02502]
[1646574880168,0.00025337,38948.0,38945.0,0.02502]
[1646574880362,0.00025337,38948.0,38945.0,0.153486]
[1646574880765,0.00025337,38948.0,38946.0,0.06423155]
[1646574880964,0.0011,38954.0,38946.0,0.06423155]
[1646574881167,0.0011,38954.0,38948.0,0.064232]
[1646574881364,0.00025337,38949.0,38948.0,0.064232]
[1646574882229,0.15751724,38954.0,38948.0,0.36587412]
[1646574882429,0.0011,38954.0,38948.0,0.36587412]
[1646574882629,0.00025337,38950.0,38948.0,0.36587412]
[1646574883231,0.00025337,38950.0,38949.0,0.30164212]
[1646574883433,0.21819221,38953.0,38948.0,0.064232]
[1646574883732,0.00012787,38951.0,38948.0,0.36587412]
[1646574883932,0.00012787,38951.0,38948.0,0.064232]
[1646574884630,0.21819221,38953.0,38949.0,0.02502]
[1646574884832,0.21819221,38953.0,38949.0,0.32666212]
[1646574885032,0.00012787,38951.0,38949.0,0.02402]
[1646574885232,0.19580101,38950.0,38949.0,0.02402]
[1646574886053,0.00012787,38951.0,38949.0,0.02402]
[1646574887055,0.21819221,38953.0,38949.0,0.02402]
[1646574887255,0.21819221,38953.0,38949.0,0.152474]
[1646574887455,0.00025411,38952.0,38949.0,0.152474]
[1646574887856,0.00025411,38952.0,38949.0,0.2166997]
[1646574888256,0.21819221,38953.0,38949.0,0.2166997]
[1646574888658,0.21819221,38953.0,38949.0,0.152474]
[1646574888659,0.00025411,38952.0,38949.0,0.152474]
[1646574889526,0.21819221,38953.0,38949.0,0.152474]
[1646574889721,0.00025411,38952.0,38949.0,0.128454]
[1646574889922,0.00025411,38952.0,38951.0,0.02402]
[1646574890722,0.21819221,38953.0,38951.0,0.088244]
[1646574890922,0.21842987,38953.0,38951.0,0.088244]
[1646574891322,0.00023766,38953.0,38951.0,0.088244]
[1646574891824,0.0011,38954.0,38951.0,0.15246719]
[1646574892222,0.00133765,38954.0,38951.0,0.15246719]
[1646574893026,0.0011,38954.0,38951.0,0.15246719]
[1646574893257,0.00133765,38954.0,38951.0,0.15246719]
[1646574893454,0.00133765,38954.0,38951.0,0.088244]
[1646574894257,0.0011,38954.0,38951.0,0.087244]
[1646574894756,0.00133849,38954.0,38951.0,0.21567282]
[1646574894956,0.00133849,38954.0,38951.0,0.063224]
[1646574895156,0.00133849,38954.0,38952.0,0.02402]
[1646574895556,0.0011,38954.0,38952.0,0.02402]
[1646574895958,0.0011,38954.0,38952.0,0.08823477]
[1646574897709,0.001,38956.0,38954.0,0.95693953]
[1646574898106,0.001,38956.0,38954.0,0.14430953]
[1646574898310,0.0001,38957.0,38954.0,0.14430953]
[1646574898506,0.0001,38958.0,38955.0,0.12755652]
[1646574898707,0.0001,38958.0,38956.0,0.614202]
[1646574898906,0.0001,38958.0,38956.0,0.064202]
[1646574899308,0.0032,38964.0,38961.0,0.81263]
[1646574899510,0.0032,38964.0,38961.0,0.876825]
[1646574899708,0.0032,38964.0,38961.0,0.88940147]
[1646574899909,0.0032,38964.0,38961.0,0.876825]
[1646574900307,0.0032,38964.0,38962.0,0.02402]
[1646574903764,0.42544317,38963.0,38962.0,0.02402]
[1646574904407,0.72708529,38963.0,38962.0,0.02402]
[1646574905110,0.87708529,38963.0,38962.0,0.02402]
[1646574907114,0.88736429,38963.0,38962.0,0.02402]
[1646574907314,0.87708529,38963.0,38962.0,0.02402]
[1646574907712,0.87708529,38963.0,38952.0,0.005]
[1646574907916,0.15,38957.0,38952.0,0.005]
[1646574908150,0.15,38957.0,38944.0,0.01282]
[1646574908151,0.02593,38955.0,38944.0,0.01282]
[1646574909055,0.17067648,38951.0,38944.0,0.01282]
[1646574909252,0.17067648,38951.0,38944.0,0.141286]
[1646574909854,0.15100932,38956.0,38945.0,0.064237]
[1646574910852,0.20736069,38952.0,38945.0,0.064237]
[1646574911353,0.20736069,38952.0,38946.0,0.06423304]
[1646574911753,0.20736069,38952.0,38948.0,0.128461]
[1646574914309,0.20736069,38952.0,38947.0,0.06423]
[1646574916281,0.5689,38958.0,38947.0,0.06423]
[1646574916482,0.32630728,38960.0,38949.0,0.06422939]
[1646574916483,0.00022917,38957.0,38949.0,0.06422939]
[1646574916685,0.00022917,38957.0,38951.0,0.064224]
[1646574917282,0.16830277,38957.0,38951.0,0.064224]
[1646574917682,0.16853195,38957.0,38951.0,0.064224]
[1646574918484,0.16830277,38957.0,38952.0,0.06422387]
[1646574918883,0.16853999,38957.0,38952.0,0.06422387]
[1646574919728,0.16830277,38957.0,38952.0,0.06422387]
[1646574919927,0.16854091,38957.0,38952.0,0.06422387]
[1646574920127,0.00023814,38957.0,38954.0,0.064224]
[1646574920330,0.00023814,38957.0,38955.0,0.06421864]
[1646574920932,0.0021,38963.0,38955.0,0.06421864]
[1646574921331,0.0021,38963.0,38957.0,0.128413]
[1646574921332,0.00023814,38958.0,38957.0,0.128413]
[1646574922131,0.0021,38963.0,38957.0,0.128413]
[1646574922333,0.0021,38963.0,38958.0,0.06421149]
[1646574922531,0.00023831,38959.0,38958.0,0.06421149]
[1646574923368,0.0021,38963.0,38958.0,0.06421149]
[1646574923564,0.0021,38963.0,38958.0,0.19263149]
[1646574923565,0.00023767,38960.0,38958.0,0.19263149]
[1646574924666,0.0021,38963.0,38958.0,0.19263149]
[1646574924966,0.00023767,38961.0,38958.0,0.19263149]
[1646574925868,0.0021,38963.0,38958.0,0.19263149]
[1646574926066,0.0002303,38961.0,38958.0,0.19263149]
[1646574927110,0.0021,38963.0,38958.0,0.19263149]
[1646574927306,0.00023034,38961.0,38958.0,0.19263149]
[1646574928107,0.00023034,38961.0,38958.0,0.19256276]
[1646574928306,0.0021,38963.0,38958.0,0.19256276]
[1646574928508,0.00023034,38961.0,38958.0,0.19256276]
[1646574929307,0.0021,38963.0,38958.0,0.19256276]
[1646574929711,0.00022189,38961.0,38958.0,0.19256276]
[1646574930752,0.00022213,38961.0,38958.0,0.19256276]
[1646574931752,0.0021,38963.0,38958.0,0.19256276]
[1646574931952,0.00022213,38961.0,38958.0,0.19256276]
[1646574932954,0.0021,38963.0,38958.0,0.19256276]
[1646574933157,0.00022213,38961.0,38958.0,0.19256276]
[1646574934403,0.00022402,38961.0,38958.0,0.19256276]
[1646574935408,0.0021,38963.0,38958.0,0.19256276]
[1646574935606,0.00022402,38961.0,38958.0,0.19256276]
[1646574936407,0.0005,38960.0,38958.0,0.19256276]
[1646574938010,0.0005,38960.0,38958.0,0.19026276]
[1646574938968,0.0005,38960.0,38957.0,0.128413]
[1646574939969,0.0005,38960.0,38955.0,0.004]
[1646574940367,0.0006113,38960.0,38956.0,0.064218]
[1646574941469,0.0005,38960.0,38956.0,0.064218]
[1646574941668,0.00074575,38960.0,38956.0,0.064218]
[1646574942513,0.0005,38960.0,38956.0,0.064218]
[1646574942915,0.00074575,38960.0,38956.0,0.064218]
[1646574943113,0.00074575,38960.0,38956.0,0.05384]
[1646574943715,0.0005,38960.0,38956.0,0.05384]
[1646574944116,0.00074575,38960.0,38953.0,0.128437]
[1646574944318,0.30112303,38960.0,38947.0,0.13082]
[1646574944518,0.02593,38959.0,38947.0,0.118]
[1646574944917,0.19049475,38951.0,38947.0,0.118]
[1646574945120,0.19049475,38951.0,38944.0,0.064241]
[1646574945121,0.36998295,38951.0,38944.0,0.064241]
[1646574945518,0.36998295,38951.0,38942.0,0.506]
[1646574945757,0.36998295,38951.0,38942.0,0.006]
[1646574946757,0.1794882,38951.0,38942.0,0.006]
[1646574946957,0.1794882,38951.0,38942.0,0.0642373]
[1646574947255,0.1794882,38951.0,38943.0,0.30037728]
[1646574947659,0.1794882,38951.0,38944.0,0.064241]
[1646574947859,0.16409828,38952.0,38945.0,0.30037728]
[1646574948057,0.16409828,38952.0,38947.0,0.123457]
[1646574948257,0.29930833,38956.0,38947.0,0.123457]
[1646574948459,0.4490601,38956.0,38939.0,0.30037728]
[1646574948660,0.17593,38956.0,38939.0,0.30037728]
[1646574948857,0.02593,38953.0,38939.0,0.30037728]
[1646574949057,0.02593,38953.0,38944.0,0.003]
[1646574949257,0.18595409,38945.0,38944.0,0.003]
[1646574950311,0.18595409,38945.0,38941.0,0.128478]
[1646574950712,0.18595409,38945.0,38939.0,0.128487]
[1646574952213,0.18595409,38945.0,38939.0,0.42886428]
[1646574952414,0.18883093,38947.0,38939.0,0.42886428]
[1646574953257,0.18883093,38947.0,38940.0,0.06424169]
[1646574953457,0.121,38952.0,38941.0,0.30037728]
[1646574953657,0.121,38952.0,38941.0,0.36461628]
[1646574954456,0.15136043,38949.0,38941.0,0.36461628]
[1646574955056,0.32650768,38952.0,38941.0,0.36461628]
[1646574955455,0.32650768,38952.0,38943.0,0.06423402]
[1646574955661,0.20550768,38952.0,38945.0,0.064236]
[1646574956059,0.17074029,38950.0,38945.0,0.064236]
[1646574956907,0.20550768,38952.0,38945.0,0.064236]
[1646574957309,0.03873067,38956.0,38946.0,0.06423286]
[1646574957510,0.02522376,38957.0,38948.0,0.064234]
[1646574957908,0.15791898,38952.0,38948.0,0.064234]
[1646574958108,0.15791898,38952.0,38948.0,0.054234]
[1646574958911,0.15791898,38952.0,38944.0,0.128471]
[1646574959111,0.15791898,38952.0,38945.0,0.003]
[1646574960210,0.1631239,38946.0,38945.0,0.003]
[1646574960512,0.1631239,38946.0,38937.0,0.1198]
[1646574960760,0.1631239,38946.0,38936.0,0.73717728]
[1646574961065,0.1125,38951.0,38940.0,0.005]
[1646574961262,0.15222722,38946.0,38940.0,0.005]
[1646574961460,0.1125,38951.0,38941.0,0.064243]
[1646574961659,0.1125,38951.0,38942.0,0.30037728]
[1646574962259,0.1125,38951.0,38942.0,0.36461511]
[1646574963261,0.1125,38951.0,38945.0,0.0642353]
[1646574963459,0.17650058,38952.0,38945.0,0.1927033]
[1646574963662,0.17650058,38952.0,38945.0,0.49308058]
[1646574967514,0.17650058,38952.0,38945.0,0.1927033]
[1646574967713,0.17650058,38952.0,38945.0,0.128468]
[1646574968166,0.36195406,38952.0,38945.0,0.128468]
[1646574968364,0.17650058,38952.0,38945.0,0.19270375]
[1646574969263,0.17650058,38952.0,38945.0,0.49308103]
[1646574969462,0.17650058,38952.0,38945.0,0.19270375]
[1646574971766,0.17650058,38952.0,38945.0,0.128468]
[1646574972017,0.17650058,38952.0,38944.0,0.06424]
[1646574975322,0.17650058,38952.0,38942.0,0.30037728]
[1646574975522,0.20243058,38952.0,38941.0,0.004]
[1646574975960,0.18464011,38949.0,38943.0,0.064242]
[1646574977061,0.20243058,38952.0,38943.0,0.064242]
[1646574977262,0.20243058,38952.0,38943.0,0.12847964]
[1646574977462,0.20243058,38952.0,38945.0,0.064233]
[1646574978161,0.20903398,38950.0,38945.0,0.064233]
[1646574978562,0.16297569,38946.0,38945.0,0.064233]
[1646574978762,0.16297569,38946.0,38944.0,0.128466]
[1646574978962,0.16297569,38946.0,38941.0,0.064245]
[1646574979167,0.16297569,38946.0,38942.0,0.003]
[1646574979815,0.20903398,38950.0,38942.0,0.003]
[1646574980012,0.30037728,38955.0,38945.0,0.064236]
[1646574981012,0.20031011,38950.0,38945.0,0.064236]
[1646574982813,0.20031011,38950.0,38945.0,0.06413014]
[1646574983013,0.38218742,38950.0,38945.0,0.06413014]
[1646574984462,0.38218742,38950.0,38944.0,0.128469]
[1646574984863,0.38218742,38950.0,38940.0,0.128482]